Cogmind - Beta 10.2 @@@ ROGUE MODE // 2021.11.12 @ 16:08:26 Player: rath Result: Destroyed by G-47 Trooper with Particle Gun Performance ------------- Evolutions (1) 500 Regions Visited (6) 1200 Robots Destroyed (58) 290 Value Destroyed (1355) 1355 Prototype IDs (30) 600 Alien Tech Used (0) 0 Bonus (258) 258 TOTAL SCORE: 4203 Bonus ------- High Alert Combat Kills 38 Aligned with FarCom 300 Friendly Fire -80 Cogmind --------- Core Integrity 0/400 Matter 161/300 Energy 100/100 System Corruption 0% Temperature Cool (147) Movement Core (1000) Ox19 Location -8/Mines Parts ------- > --- POWER (1) -------- (None) > --- PROPULSION (2) --- (None) > --- UTILITY (4) ------ Large Storage Unit Large Storage Unit Large Storage Unit Hardened Light Armor Plating > --- WEAPON (2) ------- Heavy Assault Rifle Improved Assault Rifle > --- INVENTORY (22) --- Improved Ion Engine Flying Fortress v7 Large Storage Unit Gravity Neutralizing Apparatus Gravity Neutralizing Apparatus Improved Sensor Array Advanced Weapon Cycler Hardened Light Armor Plating Hardened Light Armor Plating AS-neutralizer No. 17b Assault Rifle Light Assault Rifle Heavy Assault Rifle 8R-AWN's Boregun Grenade Launcher Deploy-a-Sentry Deploy-a-Sentry Deploy-a-Sentry Peak State ------------ > --- POWER ------------ Improved Ion Engine > --- PROPULSION ------- Light Treads Light Treads > --- UTILITY ---------- Large Storage Unit Large Storage Unit Large Storage Unit Hardened Light Armor Plating > --- WEAPON ----------- Heavy Assault Rifle Improved Assault Rifle > --- INVENTORY -------- Improved Ion Engine Light Nuclear Core Flying Fortress v7 Large Storage Unit Gravity Neutralizing Apparatus Gravity Neutralizing Apparatus Improved Sensor Array Advanced Weapon Cycler Hardened Light Armor Plating Hardened Light Armor Plating AS-neutralizer No. 17b Assault Rifle Light Assault Rifle Heavy Assault Rifle Heavy Assault Rifle 8R-AWN's Boregun Rocket Launcher Deploy-a-Sentry Deploy-a-Sentry [Rating: 24] Favorites ----------- Power Improved Ion Engine Engine Improved Ion Engine Propulsion Light Treads Treads Light Treads Leg Aluminum Leg Utility Large Storage Unit Storage Large Storage Unit Processor Improved Targeting Computer Protection Hardened Light Armor Plating Weapon Assault Rifle Energy Gun EM Pulse Gun Ballistic Gun Assault Rifle Launcher Rocket Launcher Build | -11 -10 -10 -9 -9 -9 -8 ------- Run | Scr Mat Min Mat Min Exi Min Slots Evolved 2 | . . . 2 . . . Power . | . . . . . . . Propulsion . | . . . . . . . Utility 2 | . . . 2 . . . Weapon . | . . . . . . . Parts Attached 70 | . 22 . 31 . 16 1 Power 13 | . 7 . 6 . . . Engine 13 | . 7 . 6 . . . Core . | . . . . . . . Reactor . | . . . . . . . Propulsion 16 | . 6 . 6 . 4 . Treads 12 | . 2 . 6 . 4 . Leg 4 | . 4 . . . . . Wheel . | . . . . . . . Hover . | . . . . . . . Flight . | . . . . . . . Utility 18 | . 5 . 7 . 6 . Device . | . . . . . . . Storage 13 | . 4 . 7 . 2 . Processor 1 | . . . . . 1 . Hackware . | . . . . . . . Protection 4 | . 1 . . . 3 . Artifact . | . . . . . . . Weapon 23 | . 4 . 12 . 6 1 Energy Gun . | . . . . . . . Energy Cannon . | . . . . . . . Ballistic Gun 21 | . 4 . 12 . 4 1 Ballistic Cannon . | . . . . . . . Launcher 2 | . . . . . 2 . Special Weapon . | . . . . . . . Impact Weapon . | . . . . . . . Slashing Weapon . | . . . . . . . Piercing Weapon . | . . . . . . . Special Melee Weapon . | . . . . . . . Unidentified Prototypes 2 | . . . 2 . . . Parts Lost 14 | . 3 . 1 . 6 4 Power 1 | . . . . . . 1 Propulsion 6 | . 1 . . . 3 2 Utility 2 | . 1 . . . 1 . Weapon 5 | . 1 . 1 . 2 1 Highest Loss Streak 6 | . 2 . 1 . 6 4 Average Slot Usage (%) 99 | . 98 100 99 100 98 88 Engine 11 | . 13 14 10 11 11 11 Treads 19 | . 9 28 21 22 21 11 Leg 3 | . 17 . . . . . Storage 36 | . 27 28 44 44 35 33 Protection 1 | . . . . . 5 11 Ballistic Gun 23 | . 25 28 21 22 20 22 Naked Turns . | . . . . . . . Heaviest Build 77 | 11 41 41 69 69 77 . Greatest Support 40 | 20 40 40 40 40 40 . Greatest Overweight (x) 6 | . 6 1 2 1 3 . Average Overweight (x) . | . . 1 1 1 1 . Largest Inventory Capacity 28 | 6 16 16 26 26 28 22 Average Capacity 20 | 6 11 16 24 26 22 22 Most Carried 28 | 6 16 16 26 26 28 22 Average Carried 18 | 6 11 15 21 26 21 21 Final Capacity 26 | 6 16 16 26 26 22 22 Final Carried 26 | 6 15 16 26 26 22 21 Class Distribution -------------------- 58% | Hauler-Mutant 41% | Mutant Dominant Class ---------------- Mutant | -10/Materials Mutant | -10/Mines Hauler-Mutant | -9/Materials Hauler-Mutant | -9/Mines Hauler-Mutant | -9/Exiles Hauler-Mutant | -8/Mines Resources | -11 -10 -10 -9 -9 -9 -8 ----------- Run | Scr Mat Min Mat Min Exi Min Matter Collected 1994 | 200 423 40 818 13 500 . Remotely . | . . . . . . . Salvage Created 2221 | . 580 . 1452 . 140 49 Parts 153 | . 37 . 98 . 17 1 Haulers Intercepted 8 | . 2 . 6 . . . Recyclers Shooed 1 | . . . 1 . . . Parts Field Recycled . | . . . . . . . Retrieved Matter . | . . . . . . . Parts Self-Destructed . | . . . . . . . Prevented . | . . . . . . . Kills | -11 -10 -10 -9 -9 -9 -8 ------- Run | Scr Mat Min Mat Min Exi Min Combat Hostiles Destroyed 51 | . 14 . 28 . 8 1 Guns 47 | . 14 . 28 . 4 1 AOE 4 | . . . . . 4 . Classes Destroyed 11 | . 5 . 5 . 1 . Tunneler 1 | . 1 . . . . . Hauler 8 | . 2 . 6 . . . Recycler 1 | . . . 1 . . . Operator 1 | . 1 . . . . . Watcher 2 | . . . 2 . . . Swarmer 14 | . 6 . 8 . . . Grunt 19 | . 8 . 11 . . . Brawler 2 | . . . 1 . . 1 Duelist 1 | . . . 1 . . . Sentry 7 | . . . 7 . . . Assembled 7 | . . . . . 7 . Best Kill Streak 8 | . 3 . 5 . 8 1 Combat Bots Only 7 | . 3 . 4 . 7 1 Max Kills in Single Turn 2 | . 2 . 2 . 2 1 Gunslinging 1 | . 1 . 1 . . . Exploded 2 | . . . . . 2 . Melee . | . . . . . . . Uniques/NPCs Destroyed 2 | . . . . . 2 . EX-HEX (-9/Exiles) 8R-AWN (-9/Exiles) Combat | -11 -10 -10 -9 -9 -9 -8 -------- Run | Scr Mat Min Mat Min Exi Min Damage Taken 3883 | . 734 . 1332 . 1269 548 Core 559 | . 144 . 181 . 154 80 Absorbed by Shields . | . . . . . . . Core Remaining (%) 71 | 100 . 42 . . . . Volleys Fired 204 | . 50 . 99 . 42 13 Largest 2 | . 2 . 2 . 2 2 Hottest 60 | . 60 . 46 . 46 46 Shots Fired 394 | . 99 . 198 . 71 26 Gun 381 | . 99 . 198 . 58 26 Cannon . | . . . . . . . Launcher 13 | . . . . . 13 . Special . | . . . . . . . Kinetic 368 | . 86 . 198 . 58 26 Thermal . | . . . . . . . Explosive 13 | . . . . . 13 . Electromagnetic 13 | . 13 . . . . . Robot Hit Streak 19 | . 11 . 17 . 19 13 Robot Miss Streak 3 | . 3 . 3 . 1 2 Penetration Max . | . . . . . . . Secondary Targets 7 | . 3 . 3 . . 1 Max Gunslinging Chain 1 | . 1 . 1 . . 1 Shots Hit Robots 283 | . 68 . 140 . 53 22 Core Hits 119 | . 27 . 56 . 32 4 Critical Hits 1 | . . . . . 1 . Critical Kills . | . . . . . . . Critical Parts Destroyed . | . . . . . . . Melee Attacks . | . . . . . . . Impact . | . . . . . . . Slashing . | . . . . . . . Piercing . | . . . . . . . Sneak Attacks . | . . . . . . . Combat Hostiles . | . . . . . . . Follow-up Attacks . | . . . . . . . Damage Inflicted 4740 | . 856 . 2314 . 1243 327 Guns 4044 | . 856 . 2070 . 791 327 Cannons . | . . . . . . . Explosions 696 | . . . 244 . 452 . Melee . | . . . . . . . Ramming . | . . . . . . . Kinetic 3922 | . 734 . 2070 . 791 327 Thermal 244 | . . . 244 . . . Explosive 452 | . . . . . 452 . Electromagnetic 122 | . 122 . . . . . Impact . | . . . . . . . Slashing . | . . . . . . . Piercing . | . . . . . . . Highest Corruption . | . . . . . . . Average Corruption . | . . . . . . . Corruption Purged . | . . . . . . . Overload Shots . | . . . . . . . Overflow Damage 30 | . . . 22 . 8 . Projectiles . | . . . . . . . Explosions 30 | . . . 22 . 8 . Melee . | . . . . . . . Knockbacks . | . . . . . . . Impact . | . . . . . . . Kinetic . | . . . . . . . Secondary . | . . . . . . . Self-Inflicted Damage 31 | . . . . . 31 . Shots 1 | . . . . . 1 . Rammed . | . . . . . . . Targets Rammed . | . . . . . . . Kicked . | . . . . . . . Crushed . | . . . . . . . Highest Temperature 160 | . 73 . 2 . . 160 Average Temperature 50 | . 38 . 1 . . 89 Received Heat Transfer 963 | . 291 . 384 . . 288 Siege Activations . | . . . . . . . Robots Corrupted . | . . . . . . . Combat Hostiles . | . . . . . . . Parts Fried . | . . . . . . . Impact Corruptions . | . . . . . . . Robots Melted . | . . . . . . . Combat Hostiles . | . . . . . . . Parts Melted . | . . . . . . . Heat Transferred 150 | . . . 150 . . . Parts Sabotaged . | . . . . . . . Parts Stolen . | . . . . . . . Parts Stripped . | . . . . . . . Power Chain Reactions . | . . . . . . . Missiles Intercepted . | . . . . . . . Alert | -11 -10 -10 -9 -9 -9 -8 ------- Run | Scr Mat Min Mat Min Exi Min Peak Influence 574 | . 232 . 574 223 . 30 Initial 223 | . . . . 223 . . Average 140 | . 60 . 234 223 . 11 Maximum Alert Level 2 | . 1 . 2 1 . . Low Security (%) 64 | 100 94 100 36 . . 100 Level 1 27 | . 5 . 45 100 . . Level 2 8 | . . . 17 . . . Level 3 . | . . . . . . . Level 4 . | . . . . . . . Level 5 . | . . . . . . . High Security . | . . . . . . . Max Security . | . . . . . . . Squads Dispatched 6 | . 4 . 2 . . . Investigation 4 | . 3 . 1 . . . Extermination . | . . . . . . . Reinforcement 2 | . 1 . 1 . . . Assault . | . . . . . . . Garrison . | . . . . . . . Intercept . | . . . . . . . Construction Impeded . | . . . . . . . Haulers Reinforced . | . . . . . . . Stealth | -11 -10 -10 -9 -9 -9 -8 --------- Run | Scr Mat Min Mat Min Exi Min Distress Signals 4 | . 2 . 2 . . . Communications Jammed . | . . . . . . . Distress Signals . | . . . . . . . Times Spotted 88 | . 31 . 46 . 8 3 Peak Tracking Total 9 | . 5 . 7 . 9 3 Tactical Retreats 5 | . 1 . 2 . 2 . Traps | -11 -10 -10 -9 -9 -9 -8 ------- Run | Scr Mat Min Mat Min Exi Min Traps Triggered 7 | . 6 . 1 . . . Indirectly . | . . . . . . . Trap Hack Attempts . | . . . . . . . Triggered . | . . . . . . . Disarmed . | . . . . . . . Reprogrammed . | . . . . . . . Reused . | . . . . . . . Traps Extracted . | . . . . . . . Installed . | . . . . . . . Triggered . | . . . . . . . Machines | -11 -10 -10 -9 -9 -9 -8 ---------- Run | Scr Mat Min Mat Min Exi Min Machines Disabled 9 | . . . 3 . 6 . Max in Single Turn 3 | . . . 3 . 2 . Machines Sabotaged . | . . . . . . . Garrisons Compromised . | . . . . . . . Overloaded Fab Kills . | . . . . . . . Fab Network Shutdowns . | . . . . . . . Hacking | -11 -10 -10 -9 -9 -9 -8 --------- Run | Scr Mat Min Mat Min Exi Min Machines Accessed 21 | . 8 . 11 . 2 . Terminals 14 | . 7 . 7 . . . Fabricators . | . . . . . . . Repair Stations 2 | . . . 2 . . . Recycling Units 1 | . 1 . . . . . Scanalyzers 2 | . . . 2 . . . Garrison Access . | . . . . . . . Total Hacks 80 | . 28 . 46 . 6 . Successful 56 | . 17 . 33 . 6 . Failed 24 | . 11 . 13 . . . Catastrophic 2 | . 2 . . . . . Database Lockouts . | . . . . . . . Manual 40 | . 19 . 20 . 1 . Terminals 54 | . 26 . 28 . . . Fabricators . | . . . . . . . Repair Stations 10 | . . . 10 . . . Recycling Units 2 | . 2 . . . . . Scanalyzers 8 | . . . 8 . . . Garrison Access . | . . . . . . . Terminal Hacks 30 | . 11 . 13 . 6 . Record 5 | . . . . . 5 . Robot Schematic 1 | . 1 . . . . . Robot Analysis 1 | . 1 . . . . . Prototype ID Bank 2 | . 1 . 1 . . . Branch Access Points 2 | . . . 2 . . . Emergency Access Points 1 | . . . 1 . . . Terminal Index 1 | . 1 . . . . . Unreport Threat 1 | . 1 . . . . . Locate Traps 5 | . 2 . 3 . . . Recall Reinforcements 1 | . . . 1 . . . Hauler Manifests 4 | . 3 . 1 . . . Registered Prototypes 1 | . 1 . . . . . Zone Layout 4 | . . . 4 . . . EX-Prototype ID Bank 1 | . . . . . 1 . Fabricator Hacks . | . . . . . . . Repair Station Hacks 10 | . . . 10 . . . Scan Component 5 | . . . 5 . . . Repair 5 | . . . 5 . . . Recycling Unit Hacks 2 | . 2 . . . . . Report Inventory 1 | . 1 . . . . . Retrieve Components 1 | . 1 . . . . . Scanalyzer 7 | . . . 7 . . . Insert Component 3 | . . . 3 . . . Analyze 4 | . . . 4 . . . Garrison Access Hacks . | . . . . . . . Unauthorized Hacks 7 | . 4 . 3 . . . Terminals 7 | . 4 . 3 . . . Assimilate 1 | . . . 1 . . . Botnet 4 | . 3 . 1 . . . Operators 2 | . 1 . 1 . . . Fabricators . | . . . . . . . Repair Stations . | . . . . . . . Recycling Units . | . . . . . . . Scanalyzers . | . . . . . . . Garrison Access . | . . . . . . . Data Cores Recovered . | . . . . . . . Used . | . . . . . . . Hacking Detections 17 | . 7 . 10 . . . Full Trace Events 6 | . 2 . 4 . . . Feedback Events . | . . . . . . . Feedback Blocked . | . . . . . . . Robot Schematics Acquired 1 | . 1 . . . . . Robots Built . | . . . . . . . Matter . | . . . . . . . Time . | . . . . . . . Total Robot Build Rating . | . . . . . . . Part Schematics Acquired 3 | . . . 3 . . . Parts Built . | . . . . . . . Matter . | . . . . . . . Time . | . . . . . . . Total Part Build Rating . | . . . . . . . Parts Repaired 5 | . . . 5 . . . Time 196 | . . . 196 . . . Parts Recycled . | . . . . . . . Recycled Matter . | . . . . . . . Retrieved Matter . | . . . . . . . Retrieved Components 10 | . 10 . . . . . Parts Scanalyzed 3 | . . . 3 . . . Part Schematics Acquired 3 | . . . 3 . . . Parts Damaged . | . . . . . . . Bothacking | -11 -10 -10 -9 -9 -9 -8 ------------ Run | Scr Mat Min Mat Min Exi Min Used RIF Installer . | . . . . . . . Robots Hacked . | . . . . . . . Non-combat . | . . . . . . . Combat . | . . . . . . . Robot Hacks Applied . | . . . . . . . Relay Couplers Released . | . . . . . . . Robots Rewired . | . . . . . . . Allies Hacked . | . . . . . . . Hacks Repelled . | . . . . . . . Allies | -11 -10 -10 -9 -9 -9 -8 -------- Run | Scr Mat Min Mat Min Exi Min Total Allies 1 | . . . 1 . . . Largest Group 1 | . . . 1 . . . Highest-Rated Group 10 | . . . 10 . . . Highest-Rated Ally 10 | . . . 10 . . . Total Orders . | . . . . . . . Ally Attacks . | . . . . . . . Total Damage . | . . . . . . . Kills . | . . . . . . . Allies Corrupted . | . . . . . . . Allies Melted . | . . . . . . . Intel | -11 -10 -10 -9 -9 -9 -8 ------- Run | Scr Mat Min Mat Min Exi Min Robot Analysis Total 1 | . 1 . . . . . Derelict Logs Recovered 1 | . . 1 . . . . Drone Launches . | . . . . . . . Drone Recoveries . | . . . . . . . Exploration | -11 -10 -10 -9 -9 -9 -8 ------------- Run | Scr Mat Min Mat Min Exi Min Turns Passed 7427 | 3 1689 940 2740 164 1851 40 Spaces Moved 3569 | 3 880 517 1152 92 925 . Core 6 | . 6 . . . . . Treads 2989 | . 303 517 1152 92 925 . Legs 574 | 3 571 . . . . . Wheels . | . . . . . . . Hover . | . . . . . . . Flight . | . . . . . . . Fastest Speed 120 | 120 120 180 180 180 180 . Average Speed 174 | 120 157 180 180 180 181 . Slowest Speed 350 | 120 350 180 200 180 220 . Overloaded Moves . | . . . . . . . Propulsion Burnouts . | . . . . . . . Robots Hopped . | . . . . . . . Cave-ins Triggered . | . . . . . . . Exploration Rate (%) 53 | 1 97 96 79 28 69 4 Regions Visited 6 Branch Regions 4 Pre-discovered Areas 2 | . . 1 . . 1 . Known Exits Taken 1 | . . . 1 . . . Unknown Exits Taken 5 | 1 1 1 . 1 1 . Scrap Searched 3 | . . 2 . 1 . . Spaces Dug . | . . . . . . . Terrain Destroyed 86 | . . . 56 . 30 . Melee . | . . . . . . . Projectile . | . . . . . . . AOE 86 | . . . 56 . 30 . Terrain Rammed . | . . . . . . . Walls Destroyed . | . . . . . . . Machines Disabled . | . . . . . . . Actions | -11 -10 -10 -9 -9 -9 -8 --------- Run | Scr Mat Min Mat Min Exi Min Total 4388 | 2 1085 528 1626 91 1042 14 Wait 396 | . 95 6 294 . 1 . Move 3563 | 2 879 516 1151 91 924 . Hop . | . . . . . . . Pick Up 78 | . 22 3 25 . 28 . Fast Attach 20 | . 11 . 8 . 1 . Attach 20 | . 3 . 7 . 9 1 Detach 5 | . . . 2 . 3 . Swap 30 | . 8 . 16 . 6 . Drop 71 | . 17 2 24 . 28 . Fire 204 | . 50 . 99 . 42 13 Melee . | . . . . . . . Ram . | . . . . . . . Kick . | . . . . . . . Crush . | . . . . . . . Escape Stasis . | . . . . . . . Rewire 1 | . . 1 . . . . Trap . | . . . . . . . Miscellaneous . | . . . . . . . Route ------- -11/Scrapyard -10/Materials (discovered 4 exits: *Mat x3 / [*Min]) -10/Mines (discovered 2 exits: *Mat x2) -9/Materials (discovered 3 exits: [*Mat x2] / *Min) -9/Mines -9/Exiles -8/Mines History --------- Turn | Location | Event 1 | -11/Scrapyard | Discovered new exit (range 0) 4 | -11/Scrapyard | Entered Materials 326 | -10/Materials | Build established: Mutant 372 | -10/Materials | Discovered new exit (range 8) 576 | -10/Materials | Discovered new exit (range 14) 643 | -10/Materials | Core integrity fell below 50% 742 | -10/Materials | Discovered new exit (range 10) 953 | -10/Materials | Discovered new exit (range 16) 1693 | -10/Materials | Entered Mines 1717 | -10/Mines | Discovered new exit (range 10) 1771 | -10/Mines | Found a damaged Exp. Sensor Array with a note attached 1774 | -10/Mines | Found Prototype Device 1795 | -10/Mines | Discovered new exit (range 5) 2011 | -10/Mines | Received a Rocket Launcher from a helpful Derelict 2633 | -10/Mines | Entered Materials 2633 | -9/Materials | Evolved 2 slots: Utility x2 2902 | -9/Materials | Identified Exp. Sensor Array 2940 | -9/Materials | Build established: Hauler-Mutant 3642 | -9/Materials | Discovered new exit (range 16) 4205 | -9/Materials | Repaired Hvy. Assault Rifle 4286 | -9/Materials | Repaired Exp. Sensor Array 4313 | -9/Materials | Repaired Assault Rifle 4452 | -9/Materials | Repaired Lgt. Treads 4486 | -9/Materials | Repaired Imp. Ion Engine 5012 | -9/Materials | Identified exit to Mines 5225 | -9/Materials | Discovered new exit (range 8) 5373 | -9/Materials | Entered Mines 5432 | -9/Mines | Assembled infested the area 5437 | -9/Mines | Assisted by a Guerilla fighting off Assembled 5530 | -9/Mines | Deemed a non-threat by the Exiles lab entrance 5530 | -9/Mines | Discovered new exit (range 5) 5537 | -9/Mines | Entered Exiles 5581 | -9/Exiles | Met 8R-AWN 5611 | -9/Exiles | Met EX-HEX 5806 | -9/Exiles | Met EX-DEC 6106 | -9/Exiles | Met EX-BIN 6126 | -9/Exiles | Aligned with FarCom system 6128 | -9/Exiles | Given EX-Vault access code 6191 | -9/Exiles | Learned location of Zion (-7) 6279 | -9/Exiles | Opened EX-Vault 6293 | -9/Exiles | Found Flying Fortress v7 6302 | -9/Exiles | Found Deploy-a-Sentry 6307 | -9/Exiles | Found Deploy-a-Sentry 6310 | -9/Exiles | Found Deploy-a-Sentry 6345 | -9/Exiles | Warned to stay clear of 0b10 Research branches 6466 | -9/Exiles | Discovered new exit (range 14) 6744 | -9/Exiles | Attacked by the Exiles 6756 | -9/Exiles | Destroyed EX-HEX 6770 | -9/Exiles | Core integrity fell below 50% 6783 | -9/Exiles | Destroyed 7 combat bots 6832 | -9/Exiles | Core integrity fell below 20% 6841 | -9/Exiles | Build established: Mutant 6845 | -9/Exiles | Destroyed 8R-AWN 6870 | -9/Exiles | Lost 6 parts (3n1u2w) 7045 | -9/Exiles | Found Prototype Ballistic Gun 7048 | -9/Exiles | Found Prototype Device 7236 | -9/Exiles | Build established: Hauler-Mutant 7388 | -9/Exiles | Stole two prototypes: Flying Fortress v7, Deploy-a-Sentry 7388 | -9/Exiles | Entered Mines 7428 | -8/Mines | Destroyed by G-47 Trooper with Particle Gun Last Messages --------------- 07045_ Acquired Prototype Ballistic Gun. 07048_ Acquired Prototype Device. 07098_ Machine disabled. 07103_ The unstable cave ceiling collapses. 07238_ Acquired 46 matter. 07245_ Dropped Lgt. Nuclear Core. 07247_ Acquired Deploy-a-Sentry. 07270_ Acquired 2 matter. 07380_ Dropped Rocket Launcher. 07380_ Acquired Grenade Launcher. LOCATION=UNKNOWN GOAL=ESCAPE 07389_ Lgt. Treads destroyed. 07400_ B-36 Bruiser destroyed. 07400_ Switching to secondary target: G-47 Trooper. 07406_ Hvy. Assault Rifle destroyed. 07410_ Seismic Survey Station disabled. 07420_ Imp. Ion Engine destroyed. 07420_ Lgt. Treads destroyed. 07427_ R-06 Scavenger collects Lgt. Treads. Map ----- +----------------------------------------------------+ | ????????????????????????????????? | | ????????????????????????????????? | | ????????????????????????????????? | | ????????????????????????????????? | | ????????????????????????????????? | | ????????????????????????????????? | | ????????????????????????????????? | | ????????????????????????????????? | | ????????????????????????????????? | | ????????????????????????????????? | | ????????????????????????????????? | | ????????????????????????????????? | | ????????????????????????????????? | | ????????????????????????????????? | | ????????????????????????????????? | | ????????????????????????????????? | | ????????????????????????????????? | | ????????????????????#???????????? | | ????????????????????# ??????????? | | ????????????????????# ??????????? | | ????????????????????# ?????????? | | ??????????????????### #######??? | | ??????????????????# #??? | | ??????????????????# #??? | | ??????????????????# r g #??? | | ??????????????????# """ @% #??? | | ??????????????????# "" g #??? | | ??????????????????# """ #??? | | ??????????????????# #??? | | ??????????????????# #??? | | ??????????????????############??? | | ????????????????????????????????? | | ????????????????????????????????? | | ????????????????????????????????? | | ????????????????????????????????? | | ????????????????????????????????? | | ????????????????????????????????? | | ????????????????????????????????? | | ????????????????????????????????? | | ????????????????????????????????? | | ????????????????????????????????? | | ????????????????????????????????? | | ????????????????????????????????? | | ????????????????????????????????? | | ????????????????????????????????? | | ????????????????????????????????? | | ????????????????????????????????? | | ????????????????????????????????? | | ????????????????????????????????? | | ????????????????????????????????? | +----------------------------------------------------+ Best States ------------- Heat Dissipation 28 Energy Generation 14 Energy Capacity 280 Matter Stores 300 Matter Capacity 300 Sight Range 16 Terrain Scan Density 10 Armor Coverage 225 Evasion (%) 40 Targeting Accuracy 6 Recoil Reduction 2 Item Schematics ----------------- Exp. Sensor Array | -9/Materials | Scanalyzed Imp. Assault Rifle | -9/Materials | Scanalyzed Hrd. Light Armor Plating | -9/Materials | Scanalyzed Robot Schematics ------------------ G-34 Mercenary | -10/Materials | Hacked Fabricated ------------ Nothing Alien Tech Used ----------------- None Achievements -------------- None Challenges ------------ None Game ------ Seed SigixSigixDatajack Manual? 0 Play Time 01:36:43 Cumulative 74.8 hours Start 2021.11.11 @ 23:37:23 End 2021.11.12 @ 16:08:26 Sessions 2 Manual Loads 0 Difficulty Rogue Special Mode None Game No. 27 Rogue 27 Adventurer 0 Explorer 0 Win Type - Total 1 Types 1/0/0/0/0/0/0/0/0 Lore% 40 Gallery% 52 Achievement% 37 Wizard Run 0 Options --------- ASCII 0 Keyboard 1 Movement Numpad Keybinds 0 Fullscreen 1 Font 36/Smallcaps Map View 76x50 Tactical HUD 1 Map Filters NONE Filters NONE Steam 1 RUN: cebafedb-a8a0-4cff-9a84-dba20088df25